Cogmind - Beta 9.6 @@@ ROGUE MODE // 2020.05.03 @ 13:39:18 Player: SURFACESEEKER Result: Destroyed by S-43 Plague with Heavy Machine Gun Performance ------------- Evolutions (6) 3000 Regions Visited (14) 2800 Robots Destroyed (141) 705 Value Destroyed (5629) 5629 Prototype IDs (15) 300 Alien Tech Used (0) 0 Bonus (1624) 1624 TOTAL SCORE: 14058 Bonus ------- Met Warlord at Base 500 MAIN.C Attacked Warlord 500 Warlord Defense Kill 690 Friendly Fire -66 Cogmind --------- Core Integrity 0/1150 Matter 281/300 Energy 100/100 System Corruption 1% Temperature Cool (0) Movement Core (650) Ox12 Location -3/Proximity Caves Parts ------- > --- POWER (2) -------- (None) > --- PROPULSION (6) --- (None) > --- UTILITY (7) ------ Large Storage Unit Large Storage Unit Improved Terrain Scan Processor Advanced Target Analyzer Advanced Transmission Jammer Advanced Trap Extractor > --- WEAPON (4) ------- (None) > --- INVENTORY (16) --- Experimental Sensor Array Makeshift Terrain Scanner Improved Terrain Scan Processor System Backup Module Recalibrator Peak State ------------ > --- POWER ------------ Neutrino Core Reinforced Antimatter Reactor > --- PROPULSION ------- Carbon-fiber Leg Flexi-carbon Leg Flexi-carbon Leg Flexi-carbon Leg Flexi-carbon Leg Biometal Leg > --- UTILITY ---------- Experimental Heat Sink Large Storage Unit Large Storage Unit Experimental Sensor Array Improved Terrain Scan Processor Advanced Target Analyzer Centrium Light Armor Plating > --- WEAPON ----------- Coil Gun Helical Railgun Compact Linear Accelerator Particle Cleaver > --- INVENTORY -------- Cold Fusion Reactor Flexi-carbon Leg Flexi-carbon Leg Large Storage Unit Makeshift Terrain Scanner Makeshift Terrain Scanner Improved Terrain Scan Processor Advanced Transmission Jammer Layered Medium Armor Plating System Backup Module Advanced Trap Extractor HERF Cannon HERF Cannon Railgun [Rating: 118] Favorites ----------- Power Micro Fission Core Engine Light Angular Momentum Engine Power Core Micro Fission Core Reactor Reinforced Antimatter Reactor Propulsion Carbon-fiber Leg Treads Improved Medium Treads Leg Carbon-fiber Leg Wheel Compact Wheel Flight Unit Xenon Bombardment Thruster Utility Large Storage Unit Device ECM Suite Storage Large Storage Unit Processor Improved Terrain Scan Processor Protection Centrium Light Armor Plating Weapon Railgun Energy Gun Heavy Laser Energy Cannon Compact Ion Cannon Ballistic Gun Railgun Ballistic Cannon Compact Linear Accelerator Slashing Weapon Greatsword Build | -11 -10 -10 -9 -9 -8 -7 -6 -5 -5 -5 -4 -4 -4 -3 ------- Run | Scr Mat Min Mat Sto Mat Fac Fac Fac Upp Upp Fac Upp War Pro Slots Evolved 12 | . . . 2 . 2 2 2 2 . . 2 . . . Power 1 | . . . . . . . 1 . . . . . . . Propulsion 4 | . . . . . 2 . . . . . 2 . . . Utility 5 | . . . 2 . . 2 . 1 . . . . . . Weapon 2 | . . . . . . . 1 1 . . . . . . Parts Attached 254 | 8 4 10 6 16 6 19 54 30 9 17 8 18 18 31 Power 25 | 1 1 1 . . 2 1 7 6 . 1 1 . 2 2 Engine 10 | 1 . 1 . . 1 . 4 2 . 1 . . . . Core 12 | . 1 . . . 1 1 3 3 . . 1 . 1 1 Reactor 3 | . . . . . . . . 1 . . . . 1 1 Propulsion 62 | 2 1 2 3 3 2 4 13 6 3 4 2 8 2 7 Treads 1 | . . . . . . . 1 . . . . . . . Leg 55 | 2 1 2 3 3 2 1 10 6 3 4 2 8 2 6 Wheel 5 | . . . . . . 3 2 . . . . . . . Hover . | . . . . . . . . . . . . . . . Flight 1 | . . . . . . . . . . . . . . 1 Utility 104 | 3 . 3 3 5 2 8 24 8 4 8 3 8 8 17 Device 76 | 1 . 2 1 2 . 4 22 6 4 8 3 8 5 10 Storage 10 | 1 . . 2 2 . 1 1 . . . . . 1 2 Processor 7 | 1 . 1 . . . 1 1 2 . . . . 1 . Hackware . | . . . . . . . . . . . . . . . Protection 11 | . . . . 1 2 2 . . . . . . 1 5 Artifact . | . . . . . . . . . . . . . . . Weapon 63 | 2 2 4 . 8 . 6 10 10 2 4 2 2 6 5 Energy Gun 18 | 1 . 1 . . . . 2 7 2 3 . . 2 . Energy Cannon 17 | . . . . 5 . 3 3 1 . . 1 1 1 2 Ballistic Gun 21 | 1 2 2 . 2 . 2 3 2 . 1 1 1 2 2 Ballistic Cannon 5 | . . 1 . 1 . 1 1 . . . . . 1 . Launcher . | . . . . . . . . . . . . . . . Special Weapon . | . . . . . . . . . . . . . . . Impact Weapon . | . . . . . . . . . . . . . . . Slashing Weapon 2 | . . . . . . . 1 . . . . . . 1 Piercing Weapon . | . . . . . . . . . . . . . . . Special Melee Weapon . | . . . . . . . . . . . . . . . Unidentified Prototypes 15 | . . 1 . 2 . . 1 1 . 2 1 . 6 1 Parts Lost 83 | . 2 . . 1 1 7 18 6 2 11 2 1 2 30 Power 11 | . 1 . . . . . 2 3 . 1 . . . 4 Propulsion 28 | . . . . . . 5 6 . . 4 . 1 1 11 Utility 14 | . . . . 1 1 1 4 . . 1 . . . 6 Weapon 30 | . 1 . . . . 1 6 3 2 5 2 . 1 9 Highest Loss Streak 12 | . 1 . . 1 1 3 6 4 2 7 1 1 2 12 Average Slot Usage (%) 95 | . 96 100 100 98 98 90 93 98 99 97 97 99 99 89 Engine 3 | . 6 5 11 11 7 . 4 3 5 4 3 . . . Core 6 | . 7 8 . . . 7 8 6 5 5 6 10 6 4 Reactor 1 | . . . . . . . . . . . . . 3 5 Leg 24 | . 28 28 22 22 36 19 15 22 23 22 31 30 30 24 Wheel 1 | . . . . . . 4 5 . . . . . . . Device 12 | . 14 14 22 14 9 15 15 16 11 11 10 10 10 10 Storage 11 | . . . 11 13 18 16 13 11 11 11 10 10 10 10 Processor 11 | . 14 14 11 8 . 4 10 11 17 17 15 15 14 10 Protection 1 | . . . . 7 7 4 . . . . . . . 4 Energy Gun 4 | . 3 2 . . . . 2 8 22 19 10 5 5 . Energy Cannon 4 | . . . . 10 . 5 8 2 . . 1 5 5 3 Ballistic Gun 7 | . 22 22 11 10 9 4 2 6 . 1 6 9 8 7 Ballistic Cannon 2 | . . 3 11 1 9 3 1 3 . . . . . 4 Naked Turns . | . . . . . . . . . . . . . . . Heaviest Build 115 | 9 9 16 33 55 54 68 68 71 68 69 72 68 100 115 Greatest Support 123 | 20 20 20 20 23 40 45 70 70 75 75 100 100 113 123 Greatest Overweight (x) 12 | . . . 1 3 1 4 4 1 . 1 . . 1 12 Average Overweight (x) . | . . . 1 1 1 1 . . . . . . . . Largest Inventory Capacity 22 | 6 4 4 10 16 16 22 22 16 16 16 16 16 16 22 Average Capacity 14 | 4 4 4 8 11 16 16 16 16 16 16 16 16 16 16 Most Carried 18 | 4 4 4 10 15 16 18 16 16 16 16 16 16 16 16 Average Carried 13 | 1 3 3 5 10 14 15 15 15 15 15 15 15 15 12 Final Capacity 16 | 4 4 4 10 16 16 16 16 16 16 16 16 16 16 16 Final Carried 16 | 1 4 4 10 15 15 16 15 16 15 16 16 16 16 5 Class Distribution -------------------- 36% | Scavenger-Skirmisher 22% | Scavenger-Mutant 15% | Mutant 13% | Scavenger-Gunner 5% | Gladiator Dominant Class ---------------- Mutant | -10/Materials Scavenger-Mutant | -10/Mines Mutant | -9/Materials Mutant | -9/Storage Scavenger-Mutant | -8/Materials Scavenger-Mutant | -7/Factory Gladiator | -6/Factory Scavenger-Skirmisher | -5/Factory Scavenger-Mutant | -5/Upper Caves Scavenger-Skirmisher | -5/Upper Caves Scavenger-Skirmisher | -4/Factory Scavenger-Skirmisher | -4/Upper Caves Scavenger-Skirmisher | -4/Warlord Scavenger-Mutant | -3/Proximity Caves Resources | -11 -10 -10 -9 -9 -8 -7 -6 -5 -5 -5 -4 -4 -4 -3 ----------- Run | Scr Mat Min Mat Sto Mat Fac Fac Fac Upp Upp Fac Upp War Pro Matter Collected 4497 | 180 211 101 219 178 209 514 558 872 70 164 90 285 263 583 Remotely . | . . . . . . . . . . . . . . . Salvage Created 6481 | 84 305 49 159 361 221 368 1633 938 140 672 118 284 185 964 Parts 303 | 7 17 3 14 22 19 19 63 36 7 20 6 13 6 51 Haulers Intercepted 3 | . . . . . . . 2 . . 1 . . . . Recyclers Shooed 2 | . . . . . . . 1 . . . 1 . . . Parts Field Recycled . | . . . . . . . . . . . . . . . Retrieved Matter . | . . . . . . . . . . . . . . . Parts Self-Destructed 199 | . . . . . . . . . . 3 . 15 143 38 Prevented 56 | . . . . . . . . . 6 15 . 5 18 12 Kills | -11 -10 -10 -9 -9 -8 -7 -6 -5 -5 -5 -4 -4 -4 -3 ------- Run | Scr Mat Min Mat Sto Mat Fac Fac Fac Upp Upp Fac Upp War Pro Combat Hostiles Destroyed 111 | . 7 3 5 6 11 5 27 11 2 8 1 4 4 17 Melee 11 | . . . . . . . 7 . . . . . . 4 Guns 46 | . 7 3 3 3 2 . 5 6 . 5 1 2 2 7 Cannons 48 | . . . 2 3 9 5 15 4 . . . 2 2 6 AOE 1 | . . . . . . . . . . 1 . . . . Classes Destroyed 16 | 1 3 . 2 2 . 4 2 . . . . . 1 1 Worker 4 | . . . 1 . . 1 2 . . . . . . . Builder 2 | . . . . . . 1 1 . . . . . . . Tunneler 7 | 4 . 1 . . . 1 . . . . 1 . . . Hauler 3 | . . . . . . . 2 . . 1 . . . . Recycler 6 | . 1 . . 1 . 1 1 2 . . . . . . Operator 2 | . . . . . . 1 1 . . . . . . . Watcher 4 | . . . . 1 1 . . 2 . . . . . . Swarmer 31 | . 3 3 1 . 7 . 9 . . . . . . 8 Grunt 44 | . 4 . 3 5 1 . 8 6 . 8 . 3 . 6 Brawler 2 | . . . . . . . 1 1 . . . . . . Duelist 2 | . . . 1 . . . . . . . . 1 . . Sentry 12 | . . . . 1 3 2 2 2 . . 1 . . 1 Hunter 9 | . . . . . . 2 3 . 2 . . . 2 . Programmer 10 | . . . . . . 1 4 2 . . . . 1 2 Striker 1 | . . . . . . . . . . . . . 1 . Samaritan 2 | . . . . . . . . . . . . . . 2 Best Kill Streak 6 | 3 3 3 3 2 5 4 5 4 2 5 1 3 3 6 Combat Bots Only 5 | . 3 3 2 2 5 1 5 2 2 5 1 3 3 5 Max Kills in Single Turn 2 | 2 1 1 1 1 1 1 1 1 1 1 1 1 1 1 Gunslinging . | . . . . . . . . . . . . . . . Exploded 1 | . . . . . . . . . . 1 . . . . Melee 1 | . . . . . . . 1 . . . . . . 1 Uniques/NPCs Destroyed . | . . . . . . . . . . . . . . . Combat | -11 -10 -10 -9 -9 -8 -7 -6 -5 -5 -5 -4 -4 -4 -3 -------- Run | Scr Mat Min Mat Sto Mat Fac Fac Fac Upp Upp Fac Upp War Pro Damage Taken 14814 | 28 457 46 166 369 637 780 2490 1474 400 1202 188 489 907 5181 Core 2331 | . 104 15 15 51 31 141 295 318 39 155 . 124 83 960 Absorbed by Shields 201 | . . . . . . . 70 . . . . . . 131 Core Remaining (%) 74 | 100 . 52 . 83 94 79 65 . . 48 . . . . Volleys Fired 380 | 8 33 12 16 34 40 47 47 42 5 21 10 9 13 43 Largest 4 | 2 2 2 2 2 2 2 3 4 4 4 4 4 4 4 Hottest 251 | 60 60 40 60 113 62 129 189 251 240 245 250 218 219 228 Shots Fired 917 | 16 52 24 30 61 80 91 117 159 19 58 29 34 46 101 Gun 551 | 16 52 24 14 27 40 24 42 103 19 58 22 25 31 54 Cannon 366 | . . . 16 34 40 67 75 56 . . 7 9 15 47 Launcher . | . . . . . . . . . . . . . . . Special . | . . . . . . . . . . . . . . . Kinetic 522 | 8 49 24 30 29 80 45 33 92 . 8 11 16 18 79 Thermal 213 | . . . . 13 . 43 84 59 . . 5 9 . . Explosive . | . . . . . . . . . . . . . . . Electromagnetic 167 | 8 3 . . 19 . 3 . 8 19 50 13 9 13 22 Entropic 15 | . . . . . . . . . . . . . 15 . Robot Hit Streak 21 | 5 19 5 5 9 21 11 15 7 4 12 9 6 4 6 Robot Miss Streak 7 | 4 4 2 3 3 3 4 4 6 2 2 3 3 4 7 Penetration Max 2 | . . . . . . . . 1 . 1 . . 2 1 Secondary Targets 1 | . 1 . . . . . . . . . . . . . Max Gunslinging Chain 1 | . 1 . . . . . . . . . . . . . Shots Hit Robots 573 | 9 37 14 16 33 51 52 99 97 12 44 13 18 20 58 Core Hits 249 | 4 16 5 7 13 18 16 51 48 2 20 4 11 8 26 Critical Hits 23 | . . . . . 1 . 2 5 . 1 . 1 2 11 Critical Kills 8 | . . . . . 1 . . 1 . . . . . 6 Critical Parts Destroyed 15 | . . . . . . . 2 4 . 1 . 1 2 5 Melee Attacks 47 | . . . . . . . 33 . . . . . . 14 Impact . | . . . . . . . . . . . . . . . Slashing 47 | . . . . . . . 33 . . . . . . 14 Piercing . | . . . . . . . . . . . . . . . Sneak Attacks 8 | . . . . . . . 7 . . . . . . 1 Combat Hostiles . | . . . . . . . . . . . . . . . Follow-up Attacks . | . . . . . . . . . . . . . . . Damage Inflicted 14782 | 181 352 143 352 627 960 1206 3836 1785 234 1102 327 476 760 2441 Guns 6396 | 87 352 143 196 300 317 334 527 1129 234 1019 258 211 535 754 Cannons 5215 | . . . 156 304 643 840 1234 656 . . 66 265 225 826 Explosions 209 | 94 . . . . . 32 . . . 83 . . . . Melee 2919 | . . . . . . . 2064 . . . . . . 855 Ramming 43 | . . . . 23 . . 11 . . . 3 . . 6 Kinetic 6458 | 16 315 143 352 300 960 510 528 1282 . 167 94 152 331 1308 Thermal 2656 | 94 . . . 81 . 648 1233 385 . 83 73 59 . . Explosive . | . . . . . . . . . . . . . . . Electromagnetic 2451 | 71 37 . . 223 . 48 . 118 234 852 157 265 174 272 Impact . | . . . . . . . . . . . . . . . Slashing 2919 | . . . . . . . 2064 . . . . . . 855 Piercing . | . . . . . . . . . . . . . . . Entropic 255 | . . . . . . . . . . . . . 255 . Highest Corruption 6 | . . . . . . 1 5 6 3 2 . . 1 1 Average Corruption 2 | . . . . . . 1 3 4 2 1 . . 1 1 Corruption Purged 11 | . . . . . . . 4 3 1 2 . . . 1 Effects 60 | . . . . . . . 36 11 5 1 . . 1 6 Message Errors 17 | . . . . . . . 11 . 1 1 . . . 4 Matter Fused 13 | . . . . . . . 8 4 1 . . . . . Heat Flow Errors 8 | . . . . . . . 6 1 1 . . . . . Energy Discharges 10 | . . . . . . . 7 1 1 . . . . 1 Parts Rejected 1 | . . . . . . . 1 . . . . . . . Data Loss (minor) 5 | . . . . . . . 1 4 . . . . . . Misfires 1 | . . . . . . . . 1 . . . . . . Targeting Errors 4 | . . . . . . . 2 . 1 . . . . 1 Weapon Failures 1 | . . . . . . . . . . . . . 1 . Overload Shots . | . . . . . . . . . . . . . . . Overflow Damage 860 | . . . . 8 1 15 510 . . 1 . . 28 297 Projectiles 120 | . . . . 8 1 15 52 . . . . . 28 16 Explosions 1 | . . . . . . . . . . 1 . . . . Melee 739 | . . . . . . . 458 . . . . . . 281 Knockbacks 29 | . . . 2 . 5 2 1 12 . . . . 1 6 Impact . | . . . . . . . . . . . . . . . Kinetic 26 | . . . 2 . 4 2 1 10 . . . . 1 6 Secondary 3 | . . . . . 1 . . 2 . . . . . . Self-Inflicted Damage 156 | 28 . . . 11 . 35 5 77 . . . . . . Shots 4 | 2 . . . . . 1 . 1 . . . . . . Rammed 9 | . . . . 2 . . 1 . . . . . . 6 Targets Rammed 11 | . . . . 2 . . 1 . . . 1 . . 7 Kicked 2 | . . . . . . . . . . . 1 . . 1 Crushed . | . . . . . . . . . . . . . . . Highest Temperature 837 | 52 59 8 50 397 78 363 492 569 307 456 300 837 315 371 Average Temperature 136 | 20 17 3 20 143 33 84 133 206 147 196 99 404 155 139 Received Heat Transfer 2521 | . 156 . 78 195 189 102 532 369 . 501 36 72 27 264 Effects 45 | . . . . 3 . . 5 19 2 3 . 10 . 3 Shutdowns 13 | . . . . 2 . . 1 5 . 1 . 3 . 1 Energy Bleed 9 | . . . . . . . . 4 . 1 . 2 . 2 Interference 13 | . . . . . . . 3 5 2 1 . 2 . . Matter Decay 2 | . . . . 1 . . . . . . . 1 . . Damage (minor) 4 | . . . . . . . . 3 . . . 1 . . Damage (major) 3 | . . . . . . . 1 1 . . . 1 . . Damage (core) 1 | . . . . . . . . 1 . . . . . . Siege Activations . | . . . . . . . . . . . . . . . Robots Corrupted 5 | . . . . . . . . 1 2 2 . . . . Combat Hostiles 5 | . . . . . . . . 1 2 2 . . . . Parts Fried 20 | . . . . 1 . . . 1 6 7 . 4 . 1 Impact Corruptions . | . . . . . . . . . . . . . . . Robots Melted . | . . . . . . . . . . . . . . . Combat Hostiles . | . . . . . . . . . . . . . . . Parts Melted 9 | 1 . . . . . 2 4 . . . 2 . . . Heat Transferred 3617 | 100 . . . 111 . 827 1665 555 . 100 148 111 . . Parts Sabotaged . | . . . . . . . . . . . . . . . Parts Stolen . | . . . . . . . . . . . . . . . Parts Stripped . | . . . . . . . . . . . . . . . Power Chain Reactions 4 | 2 . . . . . 1 . . . 1 . . . . Missiles Intercepted . | . . . . . . . . . . . . . . . Alert | -11 -10 -10 -9 -9 -8 -7 -6 -5 -5 -5 -4 -4 -4 -3 ------- Run | Scr Mat Min Mat Sto Mat Fac Fac Fac Upp Upp Fac Upp War Pro Peak Influence 389 | 20 198 81 161 187 389 208 258 345 . . 52 . . . Average Influence 91 | 11 75 68 46 66 191 77 94 138 . . 16 . . . Maximum Alert Level 1 | . . . . . 1 1 1 1 . . . . . . Low Security (%) 86 | 100 100 100 100 100 37 91 77 88 . . 100 . . . Level 1 13 | . . . . . 62 8 22 11 . . . . . . Level 2 . | . . . . . . . . . . . . . . . Level 3 . | . . . . . . . . . . . . . . . Level 4 . | . . . . . . . . . . . . . . . Level 5 . | . . . . . . . . . . . . . . . High Security . | . . . . . . . . . . . . . . . Max Security . | . . . . . . . . . . . . . . . Squads Dispatched 21 | . 1 1 2 1 1 4 8 1 . . 2 . . . Investigation 5 | . . 1 . . 1 . 2 . . . 1 . . . Extermination 8 | . . . . . . 1 5 1 . . 1 . . . Reinforcement 8 | . 1 . 2 1 . 3 1 . . . . . . . Assault . | . . . . . . . . . . . . . . . Garrison . | . . . . . . . . . . . . . . . Intercept . | . . . . . . . . . . . . . . . Construction Impeded 1 | . . . . . . 1 . . . . . . . . Haulers Reinforced . | . . . . . . . . . . . . . . . Stealth | -11 -10 -10 -9 -9 -8 -7 -6 -5 -5 -5 -4 -4 -4 -3 --------- Run | Scr Mat Min Mat Sto Mat Fac Fac Fac Upp Upp Fac Upp War Pro Distress Signals 5 | . . . 1 2 1 1 . . . . . . . . Communications Jammed . | . . . . . . . . . . . . . . . Distress Signals . | . . . . . . . . . . . . . . . Times Spotted 220 | . 10 3 13 16 21 10 33 17 5 15 3 5 44 25 Peak Tracking Total 13 | . 4 3 2 3 6 1 7 5 3 5 1 4 13 5 Tactical Retreats 26 | . . . 1 4 4 . 6 3 1 3 . 1 1 2 Traps | -11 -10 -10 -9 -9 -8 -7 -6 -5 -5 -5 -4 -4 -4 -3 ------- Run | Scr Mat Min Mat Sto Mat Fac Fac Fac Upp Upp Fac Upp War Pro Traps Triggered 5 | . . . . 1 . . 4 . . . . . . . Indirectly . | . . . . . . . . . . . . . . . Trap Hack Attempts . | . . . . . . . . . . . . . . . Triggered . | . . . . . . . . . . . . . . . Disarmed . | . . . . . . . . . . . . . . . Reprogrammed . | . . . . . . . . . . . . . . . Reused . | . . . . . . . . . . . . . . . Traps Extracted . | . . . . . . . . . . . . . . . Installed . | . . . . . . . . . . . . . . . Triggered 28 | . . . . . . . . . . . . . 27 1 Machines | -11 -10 -10 -9 -9 -8 -7 -6 -5 -5 -5 -4 -4 -4 -3 ---------- Run | Scr Mat Min Mat Sto Mat Fac Fac Fac Upp Upp Fac Upp War Pro Machines Disabled 11 | . . . . 4 2 . 2 3 . . . . . . Max in Single Turn 2 | . . . . 1 1 . 1 2 . . . . . . Machines Sabotaged . | . . . . . . . . . . . . . . . Garrisons Compromised . | . . . . . . . . . . . . . . . Overloaded Fab Kills . | . . . . . . . . . . . . . . . Fab Network Shutdowns . | . . . . . . . . . . . . . . . Hacking | -11 -10 -10 -9 -9 -8 -7 -6 -5 -5 -5 -4 -4 -4 -3 --------- Run | Scr Mat Min Mat Sto Mat Fac Fac Fac Upp Upp Fac Upp War Pro Machines Accessed 25 | . 2 1 . 4 2 2 7 2 . . 1 1 3 . Terminals 10 | . 1 . . 2 1 2 3 . . . 1 . . . Fabricators 2 | . . . . . . . 2 . . . . . . . Repair Stations 2 | . 1 . . 1 . . . . . . . . . . Recycling Units 2 | . . . . 1 . . . 1 . . . . . . Scanalyzers 4 | . . . . . 1 . 2 1 . . . . . . Garrison Access . | . . . . . . . . . . . . . . . Total Hacks 61 | . 5 1 . 7 14 4 17 4 . . 4 1 4 . Successful 42 | . 2 1 . 6 9 2 11 3 . . 3 1 4 . Failed 19 | . 3 . . 1 5 2 6 1 . . 1 . . . Catastrophic . | . . . . . . . . . . . . . . . Database Lockouts . | . . . . . . . . . . . . . . . Manual 11 | . 2 . . . . 3 4 . . . 1 1 . . Terminals 19 | . 2 . . 2 3 4 4 . . . 4 . . . Fabricators 7 | . . . . . . . 7 . . . . . . . Repair Stations 7 | . 3 . . 4 . . . . . . . . . . Recycling Units 3 | . . . . 1 . . . 2 . . . . . . Scanalyzers 19 | . . . . . 11 . 6 2 . . . . . . Garrison Access . | . . . . . . . . . . . . . . . Terminal Hacks 10 | . . 1 . 2 . . . . . . 2 1 4 . Record 4 | . . . . . . . . . . . 2 . 2 . Open Door 6 | . . 1 . 2 . . . . . . . 1 2 . Fabricator Hacks 4 | . . . . . . . 4 . . . . . . . Load Schematic 2 | . . . . . . . 2 . . . . . . . Build 2 | . . . . . . . 2 . . . . . . . Repair Station Hacks 5 | . 2 . . 3 . . . . . . . . . . Scan Component 3 | . 1 . . 2 . . . . . . . . . . Repair 2 | . 1 . . 1 . . . . . . . . . . Recycling Unit Hacks 3 | . . . . 1 . . . 2 . . . . . . Report Inventory 2 | . . . . 1 . . . 1 . . . . . . Retrieve Components 1 | . . . . . . . . 1 . . . . . . Scanalyzer 14 | . . . . . 9 . 4 1 . . . . . . Insert Component 7 | . . . . . 4 . 2 1 . . . . . . Analyze 7 | . . . . . 5 . 2 . . . . . . . Garrison Access Hacks . | . . . . . . . . . . . . . . . Unauthorized Hacks 5 | . . . . . . 2 2 . . . 1 . . . Terminals 5 | . . . . . . 2 2 . . . 1 . . . Track 5 | . . . . . . 2 2 . . . 1 . . . Fabricators . | . . . . . . . . . . . . . . . Repair Stations . | . . . . . . . . . . . . . . . Recycling Units . | . . . . . . . . . . . . . . . Scanalyzers . | . . . . . . . . . . . . . . . Garrison Access . | . . . . . . . . . . . . . . . Data Cores Recovered 1 | . . . . . . . 1 . . . . . . . Used . | . . . . . . . . . . . . . . . Hacking Detections 12 | . 1 . . . 2 1 6 1 . . 1 . . . Full Trace Events 3 | . . . . . 1 . 1 . . . 1 . . . Feedback Events . | . . . . . . . . . . . . . . . Feedback Blocked . | . . . . . . . . . . . . . . . Robot Schematics Acquired . | . . . . . . . . . . . . . . . Robots Built . | . . . . . . . . . . . . . . . Matter . | . . . . . . . . . . . . . . . Time . | . . . . . . . . . . . . . . . Total Robot Build Rating . | . . . . . . . . . . . . . . . Part Schematics Acquired 5 | . . . . . 3 . 2 . . . . . . . Parts Built 1 | . . . . . . . 1 . . . . . . . Matter 570 | . . . . . . . 570 . . . . . . . Time 228 | . . . . . . . 228 . . . . . . . Total Part Build Rating 5 | . . . . . . . 5 . . . . . . . Parts Repaired 2 | . 1 . . 1 . . . . . . . . . . Time 62 | . 26 . . 36 . . . . . . . . . . Parts Recycled . | . . . . . . . . . . . . . . . Recycled Matter . | . . . . . . . . . . . . . . . Retrieved Matter . | . . . . . . . . . . . . . . . Retrieved Components 9 | . . . . . . . . 9 . . . . . . Parts Scanalyzed 5 | . . . . . 3 . 2 . . . . . . . Part Schematics Acquired 5 | . . . . . 3 . 2 . . . . . . . Parts Damaged . | . . . . . . . . . . . . . . . Bothacking | -11 -10 -10 -9 -9 -8 -7 -6 -5 -5 -5 -4 -4 -4 -3 ------------ Run | Scr Mat Min Mat Sto Mat Fac Fac Fac Upp Upp Fac Upp War Pro Used RIF Installer . | . . . . . . . . . . . . . . . Robots Hacked . | . . . . . . . . . . . . . . . Non-combat . | . . . . . . . . . . . . . . . Combat . | . . . . . . . . . . . . . . . Robot Hacks Applied . | . . . . . . . . . . . . . . . Relay Couplers Released . | . . . . . . . . . . . . . . . Robots Rewired . | . . . . . . . . . . . . . . . Allies Hacked . | . . . . . . . . . . . . . . . Hacks Repelled . | . . . . . . . . . . . . . . . Allies | -11 -10 -10 -9 -9 -8 -7 -6 -5 -5 -5 -4 -4 -4 -3 -------- Run | Scr Mat Min Mat Sto Mat Fac Fac Fac Upp Upp Fac Upp War Pro Total Allies . | . . . . . . . . . . . . . . . Largest Group . | . . . . . . . . . . . . . . . Highest-Rated Group . | . . . . . . . . . . . . . . . Highest-Rated Ally . | . . . . . . . . . . . . . . . Total Orders 8 | . . . . . . . 5 3 . . . . . . EXPLORE 4 | . . . . . . . 2 2 . . . . . . RETURN 4 | . . . . . . . 3 1 . . . . . . Ally Attacks . | . . . . . . . . . . . . . . . Total Damage . | . . . . . . . . . . . . . . . Kills . | . . . . . . . . . . . . . . . Allies Corrupted . | . . . . . . . . . . . . . . . Allies Melted . | . . . . . . . . . . . . . . . Intel | -11 -10 -10 -9 -9 -8 -7 -6 -5 -5 -5 -4 -4 -4 -3 ------- Run | Scr Mat Min Mat Sto Mat Fac Fac Fac Upp Upp Fac Upp War Pro Robot Analysis Total . | . . . . . . . . . . . . . . . Derelict Logs Recovered 1 | . . . . . . . . . . . . 1 . . Drone Launches 5 | . . . . . . . 3 2 . . . . . . Drone Recoveries 3 | . . . . . . . 3 . . . . . . . Exploration | -11 -10 -10 -9 -9 -8 -7 -6 -5 -5 -5 -4 -4 -4 -3 ------------- Run | Scr Mat Min Mat Sto Mat Fac Fac Fac Upp Upp Fac Upp War Pro Turns Passed 16647 | 210 536 334 505 975 558 993 2868 1443 502 653 534 1662 2299 2575 Spaces Moved 9409 | 149 315 232 279 489 261 554 1517 764 277 317 405 1129 1375 1346 Core 33 | 31 . . . . . . . . . . . . . 2 Treads . | . . . . . . . . . . . . . . . Legs 8431 | 118 315 232 279 489 261 382 744 764 277 317 405 1129 1375 1344 Wheels 945 | . . . . . . 172 773 . . . . . . . Hover . | . . . . . . . . . . . . . . . Flight . | . . . . . . . . . . . . . . . Fastest Speed 50 | 50 120 120 150 150 150 100 100 120 120 120 120 120 118 118 Average Speed 127 | 105 120 120 150 156 150 143 123 132 120 120 120 120 119 129 Slowest Speed 650 | 120 120 120 150 210 150 210 240 150 120 150 120 120 150 650 Overloaded Moves . | . . . . . . . . . . . . . . . Propulsion Burnouts . | . . . . . . . . . . . . . . . Robots Hopped . | . . . . . . . . . . . . . . . Cave-ins Triggered . | . . . . . . . . . . . . . . . Exploration Rate (%) 30 | 5 33 30 15 45 28 7 26 9 46 19 5 54 66 68 Regions Visited 14 Branch Regions 7 Pre-discovered Areas . | . . . . . . . . . . . . . . . Known Exits Taken . | . . . . . . . . . . . . . . . Unknown Exits Taken 14 | 1 1 1 1 1 1 1 1 1 1 1 1 1 1 . Scrap Searched 8 | . . 1 . . . . . . 2 1 . 3 . 1 Spaces Dug 6 | . . . . 1 . 1 1 . . . 3 . . . Terrain Destroyed 164 | 7 . . . 3 2 12 12 54 . 10 7 4 19 34 Melee . | . . . . . . . . . . . . . . . Projectile 103 | . . . . 3 2 10 12 12 . . 7 4 19 34 AOE 61 | 7 . . . . . 2 . 42 . 10 . . . . Actions | -11 -10 -10 -9 -9 -8 -7 -6 -5 -5 -5 -4 -4 -4 -3 --------- Run | Scr Mat Min Mat Sto Mat Fac Fac Fac Upp Upp Fac Upp War Pro Total 13143 | 188 427 266 341 640 351 658 2357 1091 432 539 429 1414 1995 2015 Wait 2769 | 15 71 1 23 68 29 14 634 223 138 174 . 244 569 566 Move 9395 | 148 314 231 278 488 260 553 1516 763 276 316 404 1128 1374 1346 Hop . | . . . . . . . . . . . . . . . Pick Up 151 | 8 4 3 12 14 9 13 37 19 2 9 3 6 6 6 Fast Attach 48 | . 2 4 . 2 1 5 9 2 . 4 4 2 11 2 Attach 100 | 8 1 . 3 4 5 7 29 9 2 7 2 4 2 17 Detach 7 | 1 . . . 1 . 2 3 . . . . . . . Swap 107 | . 1 6 3 10 . 7 17 19 7 6 2 12 5 12 Drop 114 | . 1 9 6 11 7 10 23 14 2 2 3 9 15 2 Fire 380 | 8 33 12 16 34 40 47 47 42 5 21 10 9 13 43 Melee 47 | . . . . . . . 33 . . . . . . 14 Ram 6 | . . . . . . . 1 . . . . . . 5 Kick 5 | . . . . 2 . . . . . . 1 . . 2 Crush . | . . . . . . . . . . . . . . . Escape Stasis 13 | . . . . 5 . . 8 . . . . . . . Rewire 1 | . . . . 1 . . . . . . . . . . Trap . | . . . . . . . . . . . . . . . Miscellaneous . | . . . . . . . . . . . . . . . Route ------- -11/Scrapyard -10/Materials -10/Mines -9/Materials (discovered 2 exits: [Min] / *Sto) -9/Storage -8/Materials -7/Factory -6/Factory -5/Factory -5/Upper Caves -5/Upper Caves -4/Factory -4/Upper Caves -4/Warlord -3/Proximity Caves History --------- Turn | Location | Event 6 | -11/Scrapyard | Discovered new exit (range 15) 211 | -11/Scrapyard | Entered Materials 307 | -10/Materials | Build established: Mutant 691 | -10/Materials | Repaired Assault Rifle 730 | -10/Materials | Discovered new exit (range 15) 747 | -10/Materials | Entered Mines 781 | -10/Mines | Found a damaged Exp. Sensor Array with a note attached 787 | -10/Mines | Found Prototype Device 788 | -10/Mines | Identified Exp. Sensor Array 810 | -10/Mines | Build established: Scavenger-Mutant 930 | -10/Mines | Met a Derelict shopkeep closing up shop 970 | -10/Mines | Discovered new exit (range 15) 1081 | -10/Mines | Entered Materials 1081 | -9/Materials | Evolved 2 slots: Utility x2 1236 | -9/Materials | Build established: Mutant 1322 | -9/Materials | Discovered new exit (range 15) 1440 | -9/Materials | Discovered new exit (range 16) 1586 | -9/Materials | Entered Storage 2003 | -9/Storage | Repaired Broken ECM Suite 2496 | -9/Storage | Discovered new exit (range 16) 2561 | -9/Storage | Entered Materials 2561 | -8/Materials | Evolved 2 slots: Propulsion x2 2852 | -8/Materials | Build established: Scavenger-Mutant 3019 | -8/Materials | Discovered new exit (range 16) 3119 | -8/Materials | Entered Factory 3119 | -7/Factory | Evolved 2 slots: Utility x2 3704 | -7/Factory | Lost 3 parts (3n) 4091 | -7/Factory | Discovered new exit (range 16) 4112 | -7/Factory | Entered another Factory area 4112 | -6/Factory | Evolved 2 slots: Power x1, Weapon x1 4404 | -6/Factory | Lost 4 parts (1p1n1u1w) 4707 | -6/Factory | Build established: Gladiator 5291 | -6/Factory | Lost 3 parts (1u2w) 5881 | -6/Factory | Build established: Scavenger-Skirmisher 6330 | -6/Factory | Fabricated Exp. Sensor Array (x1) 6355 | -6/Factory | Lost 6 parts (3n2u1w) 6851 | -6/Factory | Discovered new exit (range 26) 6980 | -6/Factory | Entered another Factory area 6980 | -5/Factory | Evolved 2 slots: Utility x1, Weapon x1 7911 | -5/Factory | Lost 4 parts (1p3w) 8023 | -5/Factory | Discovered new exit (range 51) 8280 | -5/Factory | Build established: Scavenger-Gunner 8423 | -5/Factory | Entered Upper Caves 8909 | -5/Upper Caves | Discovered new exit (range 13) 8925 | -5/Upper Caves | Entered another Upper Caves area 9194 | -5/Upper Caves | Discovered new exit (range 14) 9230 | -5/Upper Caves | Build established: Scavenger-Skirmisher 9321 | -5/Upper Caves | Lost 7 parts (1p2n1u3w) 9489 | -5/Upper Caves | Core integrity fell below 50% 9523 | -5/Upper Caves | Lost 4 parts (2n2w) 9578 | -5/Upper Caves | Entered Factory 9578 | -4/Factory | Evolved 2 slots: Propulsion x2 10094 | -4/Factory | Discovered new exit (range 15) 10112 | -4/Factory | Entered Upper Caves 10212 | -4/Upper Caves | Learned Research non-interactive machine intel 11761 | -4/Upper Caves | A Derelict revealed a hidden shortcut to "reach the base" 11774 | -4/Upper Caves | Entered Warlord 11861 | -4/Warlord | System corruption cleaned by Quarantine Array 12336 | -4/Warlord | Warlord's base attacked by MAIN.C 12384 | -4/Warlord | Found Prototype Energy Gun 12384 | -4/Warlord | Identified Vortex Rifle 12388 | -4/Warlord | Found Prototype Energy Cannon 12388 | -4/Warlord | Identified Vortex Driver 12391 | -4/Warlord | Found Vortex Rifle 12686 | -4/Warlord | Warlord forces counterattacked 12731 | -4/Warlord | Spotted Striker 12859 | -4/Warlord | Met Warlord 13180 | -4/Warlord | Spotted Striker 13184 | -4/Warlord | Destroyed Striker 13474 | -4/Warlord | Build established: Scavenger-Gunner 13549 | -4/Warlord | Spotted Striker 13556 | -4/Warlord | Spotted Striker 13637 | -4/Warlord | Spotted Executioner 13993 | -4/Warlord | Spotted Executioner 13995 | -4/Warlord | Found Prototype Slashing Weapon 14035 | -4/Warlord | Opened side exit 14061 | -4/Warlord | Spotted Striker 14065 | -4/Warlord | Discovered new exit (range 9) 14073 | -4/Warlord | Entered Proximity Caves 14718 | -3/Proximity Caves | Build established: Scavenger-Skirmisher 15039 | -3/Proximity Caves | Attracted the attention of an 0b10 checkpoint 15155 | -3/Proximity Caves | Identified Particle Cleaver 15213 | -3/Proximity Caves | Lost 4 parts (2n2w) 15583 | -3/Proximity Caves | Lost 3 parts (1p2w) 15760 | -3/Proximity Caves | Lost 6 parts (4n1u1w) 16017 | -3/Proximity Caves | Build established: Scavenger-Mutant 16608 | -3/Proximity Caves | Lost 12 parts (1p3n4u4w) 16615 | -3/Proximity Caves | Core integrity fell below 50% 16631 | -3/Proximity Caves | Core integrity fell below 20% 16648 | -3/Proximity Caves | Destroyed by S-43 Plague with Heavy Machine Gun Last Messages --------------- 16624_ Slug penetrates Wall. 16624_ Penetrated by Slug. 16627_ Slug penetrates Wall. 16627_ Penetrated by Slug. 16627_ Xenon Bombardment Thruster destroyed. 16630_ Slug penetrates Wall. 16630_ Penetrated by Slug. 16630_ Slug penetrates Wall. 16634_ Penetrated by Slug. 16634_ Slug penetrates Wall. 16636_ Slammed into S-43 Plague. 16637_ Penetrated by Slug. 16640_ Slug penetrates Wall. 16642_ Slammed into S-43 Plague. 16643_ Slug penetrates Wall. 16643_ Penetrated by Slug. 16647_ S-43 Plague destroyed. 16647_ Slug penetrates Wall. [Achievement: This Is Interesting...] [Achievement: Achiever] Map ----- +----------------------------------------------------+ | ###### #### ## ###???#????????????????#?? | | # # #?###??#????#????????##?# | | ## ##?#???????????????####?? | | "### ###??#???????############ | | #### #???#???????## # | | ##?#???# | | ## ######?## ##### | | ### ###? ##??## #???# | | #### ##?? ##?### ?##### | | ##?# #?#? ##???# ##### | | ### #??# #### ###?# ####### | | #### ###### ## #??# #?####### | | #### ############% #???## ###### ###### | | #?##### ######??# ##??### #?##### ##?## | | ## ## #?#####?# % ######### ##??## ##### | | ####?#### # ## %! #### ##### | | ##?#### % ""# = ##?## #?# | | ###### ###### ##### | | ## ###### % #### #### | | ##### ####### % % #### | | ####### ## ####### % %" #### | | ######## ###" ###?## ;; ## #### | | ################ ##?###### %;;# ## ##?# | | ################ "######## *### ## ## ## | | ################ ####*%= ## ## #### | | ################## ###@ # | | ############# ##### "## s # %# | | ####### #### ###### ## ## | | ####### #### ### "%h #####??### ##"% ### | | ###### #### #####################?###### ### | | ##### ### ####### #?#### ######### ### | | [#### ### ######### #### ## | | = %! ########## ##### # | | * % ##### ##### ### ##### ###### ## | | =! ""##### ##### ? ###### #" # | | # ## ############ ?##### #" " # | | ################## ? ####?## " "# | | ################### ###### # | | ################### ? #### # # | | ################### ## # " # | | ?#########?##### # T # | | ######?######## ?# #"" # | | ###############?##? ### ??# #" "" | | ################### #?# ### # +#### | | ################## ? ? #? #### ## | | ###########??###?# ???#### ######## | | ####?#?#######?###? ##??#? ####### ############ | | #####?###########? ?##?#####?###### ########### | | #######?######?#??? ?######? ##### ########## | | ##?#############????###### # ######### | +----------------------------------------------------+ Best States ------------- Heat Dissipation 81 Energy Generation 38 Energy Capacity 540 Matter Stores 300 Matter Capacity 300 Sight Range 16 Robot Scan Range 30 Terrain Scan Range 18 Terrain Scan Density 210 ECM Strength 1 Jamming Range 16 Power Amplification 30 Armor Coverage 375 Resistance: EM 25 Melee Speed Boost 20 Phase Shifting 5 Evasion (%) 50 Melee Accuracy 8 Target Analysis 8 Core Analysis 6 Item Schematics ----------------- Exp. Sensor Array | -8/Materials | Scanalyzed Lrg. Storage Unit | -8/Materials | Scanalyzed Imp. Terrain Scan Processor | -8/Materials | Scanalyzed System Backup Module | -6/Factory | Scanalyzed EM Shield | -6/Factory | Scanalyzed Robot Schematics ------------------ None Fabricated ------------ Exp. Sensor Array | x1 | -6/Factory Alien Tech Used ----------------- None Achievements -------------- A Powerful Ally? Achiever Charge!!! This Is Interesting... Challenges ------------ None Game ------ Seed StructuralDamperStorage Manual? 0 Play Time 03:32:43 Cumulative 63.1 hours Start 2020.05.02 @ 08:39:58 End 2020.05.03 @ 13:39:18 Sessions 9 Manual Loads 0 Difficulty Rogue Special Mode None Game No. 57 Rogue 57 Adventurer 0 Explorer 0 Win Type - Total 0 Types 0/0/0/0/0/0/0 Lore% 25 Gallery% 40 Achievement% 26 Wizard Run 0 Options --------- ASCII 0 Keyboard 0 Movement Arrows Keybinds 0 Fullscreen 1 Font 14/Terminus Map View 72x54 Tactical HUD 1 Map Filters NONE Filters NONE Steam 1 RUN: c14d5928-8080-4815-a6a3-2a7e681f62ef